bitfinex/quotes_ETHUSD_20260302
["timestamp","ask_amount","ask_price","bid_price","bid_amount"]
[1772476926763,1.23304562,2027.5,2027.4,0.001]
[1772476926969,9.66928432,2027.5,2027.4,0.001]
[1772476927674,6.4562387,2027.5,2027.4,0.001]
[1772476928849,1.23297257,2027.7,2027.4,0.001]
[1772476929088,3.21297257,2027.7,2027.4,0.001]
[1772476929252,9.66921127,2027.7,2027.4,0.001]
[1772476930270,9.6691677,2027.7,2027.4,0.001]
[1772476930471,9.66917205,2027.7,2027.4,0.001]
[1772476930650,8.4362387,2027.7,2027.4,0.001]
[1772476930858,6.4557387,2027.4,2027.2,0.001]
[1772476931069,1.983,2027.3,2027.2,0.001]
[1772476931384,1.983,2027.8,2027.2,0.001]
[1772476931546,1.987,2027.8,2027.2,0.001]
[1772476933065,9.67561295,2027.8,2027.2,0.001]
[1772476933268,8.4427387,2027.8,2027.2,0.001]
[1772476933780,8.4437387,2027.8,2027.2,0.001]
[1772476934282,6.4597387,2027.8,2027.2,0.001]
[1772476934492,0.002,2027.9,2027.2,0.001]
[1772476935060,6.4617387,2027.9,2027.2,0.001]
[1772476935275,0.002,2027.8,2027.2,0.001]
[1772476935582,0.004,2027.8,2027.2,0.001]
[1772476935778,0.002,2027.9,2027.2,0.001]
[1772476935984,0.006,2027.9,2027.2,0.001]
[1772476937086,1e-08,2027.9,2027.2,0.001]
[1772476937283,6.4577387,2028.1,2027.2,0.001]
[1772476937582,0.002,2028.1,2027.2,0.001]
[1772476938090,7.69042034,2028.1,2027.2,0.001]
[1772476939477,0.002,2028.1,2027.2,0.001]
[1772476939787,0.8103148,2028.6,2027.2,0.001]
[1772476939788,0.8103148,2028.6,2027.2,0.15048499]
[1772476940160,6.4557387,2028.5,2027.2,0.15048499]
[1772476940377,0.8103148,2028.6,2027.2,0.15048499]
[1772476940585,6.4557387,2028.8,2027.2,0.15048499]
[1772476940785,7.68799996,2028.8,2027.2,0.15048499]
[1772476941082,7.68799996,2028.8,2027.4,0.065536]
[1772476941285,7.68799996,2028.8,2027.6,0.065536]
[1772476941585,0.002,2027.9,2027.6,0.065536]
[1772476941764,6.4557387,2028.6,2027.6,0.065536]
[1772476941971,0.002,2028.1,2027.6,0.065536]
[1772476942293,6.4577387,2028.1,2027.4,0.001]
[1772476943289,6.4557387,2027.9,2027.4,0.001]
[1772476945585,6.4557387,2027.7,2027.4,0.001]
[1772476946582,7.68852215,2028.0,2027.4,0.001]
[1772476948482,7.68848859,2028.0,2027.4,0.001]
[1772476948693,6.4557387,2028.0,2027.4,0.001]
[1772476948892,4.93202254,2028.4,2027.4,0.001]
[1772476948893,6.4557387,2028.3,2027.4,0.001]
[1772476951474,0.002,2028.4,2027.4,0.001]
[1772476952809,3.21530032,2028.8,2027.4,0.001]
[1772476952810,3.22786935,2028.8,2027.4,0.001]
[1772476953101,1.61393468,2029.0,2027.5,0.21502099]
[1772476953712,1.61393468,2028.9,2027.7,0.065536]
[1772476955719,1.61393468,2028.9,2027.8,1.2328632]
[1772476955938,0.002,2028.8,2027.8,1.2328632]
[1772476956140,1.61393468,2029.1,2027.8,1.2328632]
[1772476956408,1.61593468,2029.0,2027.8,1.2328632]
[1772476956780,1.61593468,2029.0,2027.8,2.8408632]
[1772476958014,0.002,2029.3,2028.0,0.54219626]
[1772476958183,0.002,2029.3,2028.0,5.86268125]
[1772476958505,0.002,2029.3,2028.0,7.14268125]
[1772476959300,0.002,2029.3,2028.0,1.97168125]
[1772476960004,0.002,2029.3,2028.2,0.065536]
[1772476961383,0.002,2029.3,2028.3,1.607]
[1772476962094,0.002,2029.3,2028.4,1.23249852]
[1772476962785,1.61393468,2029.2,2028.4,1.23249852]
[1772476964103,0.45169822,2029.5,2028.6,1.70310599]
[1772476964309,0.45169822,2029.5,2028.7,0.47072899]
[1772476964490,5.37836776,2029.8,2028.7,0.47072899]
[1772476964694,0.45169822,2029.7,2028.7,0.47072899]
[1772476964893,0.45169822,2029.7,2028.6,1.232377]
[1772476965591,0.45169822,2029.6,2028.6,1.232377]
[1772476966814,1.2318305,2029.5,2028.6,1.232377]
[1772476967030,1.68341705,2029.7,2028.7,0.47072899]
[1772476967202,0.45169822,2029.6,2028.7,0.47072899]
[1772476968089,0.45169822,2029.6,2028.6,1.232377]
[1772476969013,1.2338305,2029.5,2028.4,4.92950803]
[1772476969186,0.46058764,2029.4,2028.4,4.92950803]
[1772476970602,0.46058764,2029.4,2028.4,5.40744439]
[1772476970821,0.002,2029.5,2028.5,0.47793636]
[1772476971016,0.46258764,2029.5,2028.4,6.53250803]
[1772476971217,0.46058764,2029.3,2028.4,6.53250803]
[1772476971402,3.40869621,2030.1,2028.4,6.53250803]
[1772476971717,5.9332233,2030.1,2028.4,6.53250803]
[1772476971915,2.52652709,2030.1,2028.4,6.53250803]
[1772476972492,4.95551943,2030.1,2028.4,6.53250803]
[1772476973803,1.23352709,2030.1,2028.5,1.57612862]
[1772476974118,1.23352709,2030.1,2028.4,6.53250803]
[1772476974302,1.23352709,2030.1,2028.5,1.57612862]
[1772476975105,4.92659375,2030.0,2028.5,1.57612862]
[1772476976200,0.002,2030.1,2028.7,1.57612862]
[1772476978626,0.002,2030.1,2028.9,1.57612862]
[1772476978823,5.25784139,2030.3,2028.9,1.57612862]
[1772476978824,0.33230166,2030.3,2028.9,1.57612862]
[1772476979124,0.002,2030.6,2029.1,1.57612862]
[1772476979326,1.23316475,2030.6,2029.3,1.57612862]
[1772476979830,0.002,2030.6,2029.3,1.57612862]
[1772476980003,1.23316686,2030.6,2029.3,1.57612862]
[1772476980351,1.23073893,2031.3,2029.6,2.8144649]
[1772476980848,1.23061777,2031.5,2029.8,2.8144649]
[1772476981144,1.23061777,2031.5,2029.7,2.40370911]
[1772476981345,0.14948499,2031.4,2029.7,2.40370911]
[1772476981542,2.57847733,2031.4,2029.7,2.40370911]
[1772476982341,0.14948499,2031.4,2029.7,2.40370911]
[1772476982644,0.002,2030.4,2029.7,5.21817401]
[1772476983255,0.002,2030.6,2029.7,5.21817401]
[1772476984535,0.002,2030.6,2029.8,2.8144649]
[1772476984936,0.002,2030.6,2029.9,1.23158776]
[1772476985736,4.92295574,2031.5,2030.0,2.8144649]
[1772476985949,4.92295574,2031.5,2030.2,2.8144649]
[1772476986353,1.23061777,2031.5,2030.2,2.8144649]
[1772476986669,3.98034194,2032.0,2030.4,2.8144649]
[1772476986868,4.92303853,2032.1,2030.7,4.1894649]
[1772476987070,0.002,2032.3,2030.9,4.1894649]
[1772476987647,0.002,2032.9,2031.3,4.1894649]
[1772476987841,0.002,2032.9,2031.5,4.1894649]
[1772476988036,5.71559721,2033.5,2031.5,4.1894649]
[1772476988365,5.71559721,2033.5,2031.0,0.065536]
[1772476988366,4.91859721,2033.5,2031.7,4.1894649]
[1772476989239,0.002,2033.1,2031.7,5.4199141]
[1772476990238,0.002,2033.1,2031.4,4.92269341]
[1772476990239,0.15148499,2033.1,2031.4,1.593]
[1772476990446,0.14948499,2032.9,2031.3,4.1894649]
[1772476991375,1.22983077,2032.8,2031.4,1.23067834]
[1772476991578,1.22983077,2032.8,2031.5,4.1894649]
[1772476992150,0.065536,2032.7,2031.5,4.1894649]
[1772476992680,0.065536,2032.7,2031.0,4.1894649]
[1772476992991,0.065536,2032.7,2031.2,4.1894649]
[1772476993789,1.22995178,2032.6,2031.3,5.42020383]
[1772476994847,1.22995178,2032.6,2030.7,4.1894649]
[1772476995099,1.22995178,2032.6,2030.9,4.1894649]
[1772476995758,1.22995178,2032.6,2031.1,4.1894649]
[1772476997880,4.92180714,2032.7,2031.3,4.1894649]
[1772476999653,0.002,2032.7,2031.4,1.23067834]
[1772476999891,0.002,2032.7,2031.5,4.1894649]
[1772477000392,0.002,2032.7,2031.6,4.1894649]
[1772477000594,0.002,2032.7,2031.4,2.81867834]
[1772477001374,0.002,2032.7,2031.4,7.00814324]
[1772477002159,0.002,2032.7,2031.5,4.1894649]
[1772477004365,0.002,2032.7,2031.7,4.1894649]
[1772477005787,0.002,2032.7,2031.6,1.23055719]
[1772477005788,0.002,2032.7,2031.8,5.7774649]
[1772477006661,0.002,2032.7,2031.8,7.00789916]
[1772477007014,0.002,2032.7,2031.9,4.1894649]
[1772477007376,0.002,2032.7,2031.7,2.81845338]
[1772477007685,0.002,2032.7,2031.7,1.588]
[1772477008302,245.002,2032.7,2031.8,4.1894649]
[1772477008506,1.22995178,2032.6,2031.9,1.23037551]
[1772477008675,1.22995178,2032.6,2031.8,5.7764649]
[1772477009071,1.22995178,2032.6,2031.8,7.006898]
[1772477009486,1.22995178,2032.6,2031.9,4.1894649]
[1772477010870,246.23194073,2032.7,2032.1,4.1894649]
[1772477013203,246.23194073,2032.7,2032.1,5.4197176]
[1772477013494,246.23189138,2032.7,2032.2,4.1894649]
[1772477013903,246.23189138,2032.7,2032.0,1.23027124]
[1772477014501,246.23189138,2032.7,2032.1,4.1894649]
[1772477014802,245.002,2032.7,2032.1,4.1894649]
[1772477014978,246.23189595,2032.7,2032.2,4.1894649]
[1772477015383,245.002,2032.7,2032.3,1.23013334]
[1772477015584,245.002,2032.7,2032.4,4.1894649]
[1772477015804,239.65535963,2032.7,2032.4,4.1894649]
[1772477016100,0.002,2033.1,2032.4,2.09473245]
[1772477016502,0.002,2033.1,2032.3,2.81813334]
[1772477016503,1.23148066,2033.4,2032.5,2.16026845]
[1772477016698,0.002,2033.4,2032.5,2.09473245]
[1772477016875,16.00200001,2033.4,2032.5,2.09473245]
[1772477017079,16.00000001,2033.3,2032.5,2.09473245]
[1772477017478,17.22952905,2033.3,2032.6,3.32468423]
[1772477017677,16.00000001,2033.2,2032.6,3.32468423]
[1772477017991,16.00000001,2033.2,2032.6,2.09473245]
[1772477018314,1.89470788,2033.0,2032.2,1.589]
[1772477019225,9.89470788,2032.9,2032.2,1.589]
[1772477019515,1.22983077,2032.8,2032.2,2.81919041]
[1772477020309,1.22983077,2032.8,2032.2,1.589]
[1772477020524,1.22983077,2032.8,2032.4,0.001]
[1772477020525,16.00000001,2032.7,2032.4,0.001]
[1772477021483,0.002,2033.1,2032.5,3.32474475]
[1772477021897,0.002,2033.1,2032.6,2.09473245]
[1772477022097,0.002,2033.1,2032.7,3.68373245]
[1772477022306,0.002,2033.3,2032.7,3.68373245]
[1772477022623,16.00200001,2033.3,2032.8,2.09373245]
[1772477023228,16.00000001,2033.2,2032.8,2.09373245]
[1772477023824,0.002,2034.2,2032.9,1.22977027]
[1772477023986,4.91414681,2035.0,2033.4,5.73843136]
[1772477024178,4.91414681,2035.0,2033.8,2.09373245]
[1772477024179,15.89512411,2035.0,2033.8,2.09373245]
[1772477024400,15.89512411,2035.0,2033.5,7.39441258]
[1772477024401,15.89512411,2035.0,2034.0,2.09373245]
[1772477025879,3.12326948,2034.9,2034.1,1.428]
[1772477026305,17.78983199,2034.8,2033.8,6.50571868]
[1772477026501,8.00200001,2034.7,2033.8,6.50571868]
[1772477026710,15.89512411,2034.7,2033.8,6.50571868]
[1772477027244,1.89470788,2034.8,2033.8,6.50571868]
[1772477027515,15.89512411,2034.6,2033.8,6.50571868]
[1772477028715,15.89512411,2034.5,2033.8,12.6808681]
[1772477028915,15.89512411,2034.7,2033.8,12.6808681]
[1772477029403,3.12333307,2034.8,2034.1,2.41609228]
[1772477029708,22.00615046,2034.6,2033.8,2.81822607]
[1772477029910,6.11102635,2034.5,2033.7,2.41609228]
[1772477030122,6.11102635,2034.4,2033.6,2.81630727]
[1772477030420,1.22892395,2034.3,2033.6,2.81630727]
[1772477030585,17.12404806,2034.3,2033.6,2.81632848]
[1772477031201,15.89512411,2034.3,2033.6,2.81632848]
[1772477032209,7.8931241,2034.3,2033.6,2.81632848]
[1772477032507,4.91530049,2034.5,2033.6,2.81632848]
[1772477032711,15.89512411,2034.3,2033.6,2.81632848]
[1772477032887,8.00200001,2034.3,2033.6,2.81632848]
[1772477034181,0.002,2034.2,2033.6,2.81632848]
[1772477034913,0.002,2034.2,2033.6,8.9914779]
[1772477034914,15.89512411,2034.1,2033.6,8.9914779]
[1772477035317,8.00200001,2034.0,2033.8,3.38391845]
[1772477035815,0.002,2034.2,2033.7,6.17514942]
[1772477036013,9.39512411,2034.1,2033.7,6.17514942]
[1772477036179,8.00200001,2034.0,2033.6,2.81632848]
[1772477036379,9.39512411,2034.0,2033.6,8.9914779]
[1772477036807,1.3931241,2034.0,2033.6,8.9914779]
[1772477037025,10.62424018,2034.0,2033.6,1.22114023]
[1772477037227,10.62424018,2034.0,2033.4,1.593]
[1772477037228,16.73526653,2034.0,2033.4,1.593]
[1772477037526,6.11102635,2033.8,2032.8,1.593]
[1772477037817,6.11102635,2033.8,2032.9,3.38391845]
[1772477038181,9.39512411,2033.7,2033.2,3.38391845]
[1772477038381,9.39512411,2033.9,2033.2,3.38391845]
[1772477038709,9.39512411,2033.9,2032.9,8.99791969]
[1772477038710,1.22922607,2033.8,2032.9,8.99791969]
[1772477039015,9.39512411,2033.8,2033.4,3.38391845]
[1772477039220,15.50615046,2033.7,2032.9,2.82277027]
[1772477039434,15.50615046,2033.7,2033.0,1.593]
[1772477039730,15.50615046,2033.6,2033.0,1.593]
[1772477040021,15.50615046,2033.6,2032.8,1.22981762]
[1772477040022,6.11102635,2033.6,2032.8,2.82281762]
[1772477040222,15.50615046,2033.5,2032.8,2.82281762]
[1772477040422,6.11102635,2033.5,2032.8,2.82281762]
[1772477040586,1.22946788,2033.4,2032.8,2.82281762]
[1772477041287,1.22946788,2033.4,2032.8,1.593]
[1772477041513,9.39512411,2033.3,2032.8,2.82282942]
[1772477042124,1.22937013,2033.6,2032.8,6.20674787]
[1772477042497,1.22937013,2033.6,2032.8,1.593]
[1772477042498,7.34039648,2033.6,2032.8,1.593]
[1772477043026,7.34039648,2033.6,2032.4,2.82506948]
[1772477043177,7.34039648,2033.6,2032.4,1.595]
[1772477043679,7.34039648,2033.6,2032.4,2.82506752]
[1772477044400,7.34039648,2033.6,2032.4,1.595]
[1772477045909,6.11102635,2033.4,2032.4,2.82503783]
[1772477046303,6.11102635,2033.4,2032.6,0.001]
[1772477049298,6.11102635,2033.2,2032.6,0.001]
[1772477049901,6.11102635,2033.7,2032.8,3.38391845]
[1772477050741,6.11102635,2033.7,2032.6,0.001]
[1772477051231,6.11102635,2033.5,2032.6,0.001]
[1772477051424,6.11102635,2033.5,2032.8,3.38391845]
[1772477053199,6.11102635,2033.5,2032.6,0.001]
[1772477053828,6.11102635,2033.3,2032.6,0.001]
[1772477054033,6.11102635,2033.2,2032.6,0.001]
[1772477054941,6.11102635,2033.2,2032.7,3.38391845]
[1772477055445,6.11102635,2033.2,2032.6,0.001]
[1772477055843,3.6331228,2033.0,2032.4,0.001]
[1772477058236,4.86287113,2033.0,2032.4,0.001]
[1772477058671,4.86287113,2033.0,2032.6,0.001]
[1772477058822,3.54303227,2032.9,2032.6,0.001]
[1772477059848,1.22967445,2033.1,2032.6,3.38491845]
[1772477060055,4.77270672,2033.1,2032.6,3.38491845]
[1772477060350,4.77270672,2033.1,2032.6,0.001]
[1772477061121,3.54303227,2033.0,2032.6,0.001]
[1772477062858,3.54303227,2032.8,2032.6,0.001]
[1772477064762,3.54303227,2032.8,2032.4,0.001]
[1772477064935,4.77292354,2032.7,2032.4,0.001]
[1772477066562,3.54303227,2032.6,2032.4,0.001]
[1772477067140,4.77302254,2032.6,2032.4,0.001]
[1772477067638,3.54303227,2032.6,2032.4,0.001]
[1772477067839,4.77298818,2032.6,2032.4,0.001]
[1772477068665,3.54303227,2032.5,2032.4,0.001]
[1772477069171,1.23007282,2032.4,2032.1,0.001]
[1772477069344,3.54303227,2032.3,2032.0,1e-08]
[1772477070754,3.54303227,2032.3,2031.9,0.001]
[1772477071266,3.54303227,2032.1,2031.9,0.001]
[1772477073483,4.77330547,2032.1,2031.9,0.001]
[1772477073693,4.77330547,2032.1,2032.0,0.001]
[1772477074568,3.54303227,2032.1,2032.0,0.001]
[1772477074770,4.77328668,2032.1,2032.0,0.001]
[1772477078413,4.77328668,2032.1,2031.7,0.001]
[1772477078414,3.30953509,2032.0,2031.7,0.001]
[1772477078586,3.30953509,2032.6,2031.7,0.001]
[1772477078787,3.30953509,2032.4,2031.7,0.001]
[1772477083101,0.002,2032.8,2031.7,0.001]
[1772477083298,3.30953509,2032.6,2031.9,3.38391845]
[1772477083818,3.30953509,2032.6,2031.7,0.001]
[1772477084704,3.30953509,2032.6,2031.9,3.38391845]
[1772477085133,4.53952032,2032.6,2032.0,1.23031496]
[1772477086414,4.53952032,2032.6,2031.7,1.23144773]
[1772477086415,3.30953509,2032.5,2031.7,1.23144773]
[1772477087032,3.30953509,2032.5,2032.1,0.001]
[1772477087235,1.23207282,2032.4,2032.1,0.001]
[1772477088100,0.002,2032.4,2032.1,0.001]
[1772477090543,1.15676754,2032.4,2032.1,0.001]
[1772477091618,1.23013334,2032.3,2032.1,0.001]
[1772477092042,2.38684036,2032.4,2032.1,0.001]
[1772477093167,1.15676754,2032.4,2032.1,0.001]
[1772477093338,0.002,2032.4,2032.1,0.001]
[1772477095263,0.002,2032.4,2032.2,3.38391845]
[1772477095935,0.002,2032.6,2032.3,1.23013334]
[1772477096462,0.002,2032.6,2032.3,3.65033754]
[1772477097431,7.10613431,2033.3,2032.3,3.65033754]
[1772477097432,1.15476754,2034.6,2033.4,2.59352635]
[1772477097754,1.15476754,2034.9,2034.4,2.4202042]
[1772477097953,0.57738377,2035.3,2035.0,1.15476754]
[1772477098266,0.57738377,2035.2,2034.4,2.4202042]
[1772477098467,0.57738377,2035.2,2034.2,4.91584834]
[1772477098645,0.57738377,2035.2,2034.3,1.587]
[1772477098958,0.57738377,2035.2,2034.3,4.0072042]
[1772477099650,0.57738377,2035.2,2034.3,2.4202042]
[1772477099971,0.57738377,2035.2,2034.3,4.0062042]
[1772477100371,0.57738377,2035.0,2034.4,1.22886354]
[1772477100676,0.57738377,2035.0,2033.8,1.586]
[1772477100842,1.22844086,2035.1,2033.7,2.4202042]
[1772477100843,0.57738377,2034.8,2033.7,2.4202042]
[1772477101258,0.57738377,2034.8,2033.6,2.81534697]
[1772477101587,0.57738377,2034.8,2033.4,1.22942379]
[1772477101876,0.57738377,2034.2,2033.3,1.586]
[1772477102083,0.57738377,2034.1,2033.3,2.81552739]
[1772477102244,0.57738377,2033.9,2033.3,2.81552739]
[1772477102439,0.57738377,2033.9,2033.3,2.81551319]
[1772477104246,0.57738377,2033.8,2033.3,2.81551319]
[1772477105678,0.57738377,2033.8,2032.7,3.66371525]
[1772477105977,0.57738377,2033.3,2032.4,1.23003872]
[1772477106148,0.57738377,2033.3,2032.6,2.4202042]
[1772477106352,0.57738377,2033.2,2032.6,3.65011436]
[1772477106760,0.57738377,2033.2,2032.5,2.8170033]
[1772477106959,0.57738377,2033.2,2032.7,2.4202042]
[1772477107147,0.57738377,2033.2,2032.5,2.8170033]
[1772477107148,0.45921744,2033.5,2033.0,2.4202042]
[1772477108454,1.22946788,2033.4,2032.7,2.4202042]
[1772477108888,0.45921744,2033.8,2033.0,2.4202042]
[1772477109184,1.68845833,2033.8,2033.3,2.4202042]
[1772477109380,1.68845833,2033.8,2033.0,2.00961622]
[1772477109886,1.68845833,2033.8,2033.0,1.587]
[1772477111186,0.45921744,2033.7,2033.0,1.587]
[1772477111486,0.45921744,2033.7,2032.8,2.4202042]
[1772477111858,0.45921744,2033.7,2032.8,3.65002552]
[1772477112767,0.45921744,2033.7,2033.1,2.4202042]
[1772477113286,0.45921744,2033.5,2032.8,3.65002552]
[1772477113465,0.45921744,2033.5,2032.8,2.4202042]
[1772477113967,0.45921744,2033.5,2032.8,3.65002026]
[1772477114171,0.45921744,2033.5,2032.8,2.4202042]
[1772477114379,0.45921744,2033.5,2032.8,3.6500233]
[1772477114578,0.45921744,2033.5,2033.2,0.001]
[1772477115399,1.22946788,2033.4,2033.2,0.001]
[1772477115880,1.72469358,2033.4,2033.2,0.001]
[1772477118306,1.72469358,2033.4,2033.0,0.001]
[1772477118511,0.48111787,2033.3,2033.0,0.001]
[1772477120072,1.71066383,2033.3,2033.0,0.001]
[1772477120498,0.48111787,2033.3,2033.0,0.001]
[1772477121003,1.71065165,2033.3,2033.0,0.001]
[1772477121992,0.48111787,2033.2,2032.7,0.001]
[1772477122204,0.48111787,2033.0,2032.7,0.001]
[1772477124107,0.48111787,2033.0,2032.3,1.23008968]
[1772477124613,1.22977027,2032.9,2032.3,1.23008968]
[1772477124912,0.48111787,2032.9,2032.3,1.23008968]
[1772477126711,0.48111787,2033.1,2032.3,1.23008968]
[1772477127015,0.48111787,2033.1,2032.5,2.4202042]
[1772477127216,0.48111787,2033.1,2032.9,0.001]
[1772477127506,0.48311787,2033.1,2032.4,0.42461622]
[1772477127715,0.48311787,2033.1,2032.7,0.001]
[1772477129015,1.22970978,2033.0,2032.7,0.001]
[1772477129214,0.48111787,2032.9,2032.7,0.001]
[1772477131103,1.22983077,2032.8,2032.7,0.001]
[1772477133231,4.92083915,2033.1,2032.7,2.4212042]
[1772477133232,0.002,2033.1,2032.7,2.4212042]
[1772477133530,0.002,2033.3,2033.0,2.84282042]
[1772477133734,0.002,2033.6,2033.1,0.42261622]
[1772477134330,5.39804899,2033.8,2033.3,2.4202042]
[1772477134331,1.22927303,2033.8,2033.3,2.4202042]
[1772477134541,4.91598037,2034.2,2033.4,0.42261622]
[1772477134542,1.22898436,2034.2,2033.4,0.42261622]
[1772477134841,1.22898436,2034.2,2033.4,2.4202042]
[1772477134842,0.48111787,2034.2,2033.4,2.4202042]
[1772477135214,0.48111787,2034.0,2033.5,1.22940742]
[1772477135404,0.48111787,2034.0,2033.2,4.91824023]
[1772477135719,0.48111787,2034.0,2033.4,2.4202042]
[1772477137201,1.71028351,2033.9,2033.4,3.64966736]
[1772477137712,0.48111787,2033.9,2033.4,3.64966736]
[1772477139505,0.48111787,2033.8,2033.2,2.4202042]
[1772477139707,0.48111787,2033.8,2033.1,1.582]
[1772477139918,0.48111787,2033.8,2032.8,3.64999708]
[1772477140642,0.48111787,2033.6,2032.8,3.64999708]
[1772477140944,0.48111787,2033.6,2033.0,0.001]
[1772477141712,0.48111787,2033.4,2033.0,0.001]
[1772477144034,0.48111787,2033.2,2033.0,0.001]
[1772477144749,1.71062657,2033.4,2033.0,0.001]
[1772477145266,0.48111787,2033.3,2033.0,0.001]
[1772477146765,1.7107007,2033.3,2033.0,0.001]
[1772477146968,1.22939207,2033.6,2033.1,0.42361622]
[1772477148541,0.49179368,2033.5,2033.0,0.001]
[1772477150642,1.72126156,2033.4,2033.0,0.001]
[1772477151061,1.22946788,2033.4,2033.0,0.001]
[1772477151372,3.40144977,2033.5,2033.0,0.001]
[1772477151574,1.22938493,2033.6,2033.0,0.42461622]
[1772477152557,1.72117861,2033.6,2033.0,0.001]
[1772477153387,0.49179368,2033.5,2033.0,0.001]
[1772477153780,0.49379368,2033.3,2033.0,0.001]
[1772477154166,0.002,2033.3,2033.0,0.001]
[1772477155873,0.002,2033.3,2033.0,2.4212042]
[1772477156072,0.002,2033.3,2033.0,2.84582042]
[1772477156472,0.002,2033.3,2033.0,0.42561622]
[1772477157922,0.002,2033.3,2033.0,1.65530079]
[1772477158907,0.002,2033.3,2033.0,0.001]
[1772477162636,0.49379368,2033.3,2033.0,0.001]
[1772477163046,0.002,2033.3,2033.0,0.001]
[1772477163339,0.002,2033.5,2033.0,0.42361622]
[1772477163714,1.72310714,2033.7,2033.0,0.42361622]
[1772477163715,0.002,2033.7,2033.4,0.42261622]
[1772477163944,0.002,2033.9,2033.6,1.22934697]
[1772477164107,0.002,2033.9,2033.5,1.65197366]
[1772477164520,0.002,2033.9,2033.4,1.22942065]
[1772477165539,0.49379368,2033.9,2033.4,1.22942065]
[1772477165837,1.22922607,2033.8,2033.2,4.91822724]
[1772477166213,5.41048859,2033.9,2033.2,4.91822724]
[1772477166214,1.7230063,2033.9,2033.2,4.91822724]
[1772477166538,1.7230063,2033.9,2033.2,5.34084346]
[1772477166742,1.7230063,2033.9,2033.0,0.001]
[1772477166743,0.49179368,2033.8,2033.0,0.001]
[1772477167303,0.49179368,2033.8,2033.0,1.23070939]
[1772477167636,0.49179368,2033.6,2033.0,0.001]
[1772477167836,0.49179368,2033.6,2033.5,0.001]
[1772477168035,1.72114065,2033.6,2033.0,0.001]
[1772477168222,1.72114065,2033.6,2033.3,0.001]
[1772477170025,0.49179368,2033.5,2033.3,0.001]
[1772477171649,0.002,2033.7,2033.3,0.001]
[1772477171846,1.23128859,2033.7,2033.3,0.001]
[1772477172733,0.002,2033.7,2033.3,0.001]
[1772477172929,1.23130694,2033.7,2033.3,0.001]
[1772477175289,2.168,2033.9,2033.3,0.42361622]
[1772477175290,0.002,2033.9,2033.3,0.42361622]
[1772477175446,0.002,2033.9,2033.5,0.42061622]
[1772477175843,1.23116685,2033.9,2033.5,0.42061622]
[1772477176147,1.72684293,2033.9,2033.3,0.001]
[1772477176467,0.49567608,2033.8,2033.3,0.001]
[1772477176969,0.002,2033.9,2033.4,1.22946788]
[1772477177468,0.4827547,2033.9,2033.4,1.22946788]
[1772477178255,0.002,2033.9,2033.4,1.6500841]
[1772477179877,0.002,2033.9,2033.5,0.001]
[1772477180058,0.002,2033.7,2033.5,0.001]
[1772477180249,0.4807547,2033.6,2033.3,0.001]
[1772477180582,0.4807547,2033.6,2033.0,0.001]
[1772477181684,0.4807547,2033.4,2033.0,0.001]
[1772477181982,0.4119547,2033.4,2033.0,0.001]
[1772477182152,0.4807547,2033.6,2033.0,3.38746019]
[1772477182352,0.4807547,2033.6,2033.0,0.001]
[1772477184183,0.4807547,2033.4,2033.0,0.001]
[1772477186182,1.22952835,2033.3,2033.0,0.001]
[1772477188299,0.4807547,2033.2,2033.0,0.001]
[1772477189216,1.22952835,2033.3,2033.0,0.001]
[1772477190185,4.91793007,2033.4,2033.0,0.001]
[1772477191439,1.22945006,2033.5,2033.0,0.001]
[1772477191820,0.4807547,2033.4,2033.0,0.001]
[1772477192344,1.22952835,2033.3,2033.2,0.001]
[1772477193864,3.39534697,2033.6,2033.2,0.001]
[1772477194266,3.87610167,2033.6,2033.2,0.001]
[1772477194767,0.002,2033.7,2033.2,0.46096046]
[1772477195078,0.002,2033.9,2033.4,0.45996046]
[1772477196771,0.002,2033.9,2033.5,1.68936788]
[1772477197476,0.002,2033.9,2033.6,0.45996046]
[1772477197801,1.23103386,2034.2,2033.6,0.45996046]
[1772477198779,0.002,2034.2,2033.7,1.22928652]
[1772477199169,0.002,2034.2,2033.8,0.45996046]
[1772477199489,0.33456867,2034.5,2034.0,0.45996046]
[1772477200485,0.4807547,2035.9,2034.5,0.15384755]
[1772477200646,0.4807547,2035.7,2034.7,3.54030774]
[1772477200848,0.4807547,2036.1,2035.0,3.84642065]
[1772477201047,4.91112318,2036.2,2035.0,3.84642065]
[1772477201048,3.39077723,2036.2,2035.1,0.45996046]
[1772477201362,3.87153193,2036.2,2035.1,0.45996046]
[1772477201563,0.4807547,2036.1,2035.1,0.45996046]
[1772477202822,0.4807547,2036.1,2034.8,0.45996046]
[1772477202823,0.4807547,2035.9,2034.8,0.45996046]
[1772477202951,0.4807547,2035.9,2034.6,1.68864282]
[1772477203259,2.161,2035.8,2034.8,0.45996046]
[1772477204357,2.6417547,2035.8,2034.8,0.45996046]
[1772477205058,1.22807879,2035.7,2034.9,1.68852206]
[1772477206099,0.4807547,2035.6,2034.5,4.91517235]
[1772477206265,0.4807547,2035.6,2034.5,1.22880314]
[1772477206461,0.4807547,2035.6,2034.7,0.45996046]
[1772477206985,0.4807547,2035.6,2034.6,3.38646019]
[1772477207194,1.22819945,2035.5,2034.7,1.22868236]
[1772477207393,1.70895415,2035.5,2034.7,1.22868236]
[1772477207869,0.49387853,2035.4,2034.7,1.22868236]
[1772477209269,1.72218137,2035.4,2034.6,3.38646019]
[1772477210272,0.49387853,2035.3,2034.2,1.567]
[1772477210459,0.49387853,2035.3,2034.3,1.22892395]
[1772477210663,0.49387853,2035.3,2034.2,1.22894147]
[1772477212798,0.49387853,2035.1,2034.2,1.22894147]
[1772477213160,0.49387853,2035.1,2034.0,1.22905471]
[1772477213872,0.49387853,2035.1,2034.0,4.6155149]
[1772477214086,0.49387853,2034.9,2034.0,4.6155149]
[1772477214592,0.49387853,2034.9,2034.1,0.45827847]
[1772477214781,1.22862197,2034.8,2034.2,1.22898436]
[1772477215567,1.7225005,2034.8,2034.2,1.22898436]
[1772477215895,0.49387853,2034.7,2034.1,1.22899992]
[1772477216096,0.49387853,2035.0,2034.4,0.001]
[1772477216799,1.2285616,2034.9,2034.4,0.001]
[1772477218480,0.49387853,2034.7,2034.2,0.001]
[1772477218820,1.22874275,2034.6,2034.2,0.001]